[Event "*** Titled Tuesday Blitz"]
[Site "Chess.com"]
[Date "2020.04.07"]
[Round "6"]
[White "SahajGrover"]
[Black "BillieKimbah"]
[Result "1-0"]
[WhiteElo "2683"]
[BlackElo "2850"]
[TimeControl "180+1"]
[EndTime "14:07:34 PDT"]
[Termination "SahajGrover won by resignation"]

1. d4 {[%clk 0:03:00]} 1... Nf6 {[%clk 0:02:57.4]} 2. Bf4 {[%clk 0:03:00.4]}
2... c5 {[%clk 0:02:55.9]} 3. e3 {[%clk 0:02:57.8]} 3... Qb6 {[%clk 0:02:55]} 4.
Na3 {[%clk 0:02:57.7]} 4... Nd5 {[%clk 0:02:51.9]} 5. Nc4 {[%clk 0:02:44.2]}
5... Qe6 {[%clk 0:02:39]} 6. Bg3 {[%clk 0:02:12.7]} 6... cxd4 {[%clk 0:02:37.2]}
7. Qxd4 {[%clk 0:02:09.2]} 7... Nc6 {[%clk 0:02:36.8]} 8. Qd2 {[%clk 0:02:06.7]}
8... Nf6 {[%clk 0:02:29.1]} 9. Bd3 {[%clk 0:01:53.8]} 9... d5 {[%clk 0:02:28.5]}
10. Na3 {[%clk 0:01:53.3]} 10... Ne4 {[%clk 0:02:21.6]} 11. Bxe4 {[%clk
0:01:48.1]} 11... Qxe4 {[%clk 0:02:22.1]} 12. Nb5 {[%clk 0:01:40]} 12... Qxg2
{[%clk 0:01:57.8]} 13. Nc7+ {[%clk 0:01:37.3]} 13... Kd8 {[%clk 0:01:57.5]} 14.
Nxd5 {[%clk 0:01:29.9]} 14... Bg4 {[%clk 0:01:30.3]} 15. Nf4+ {[%clk 0:01:26]}
15... Kc8 {[%clk 0:01:29]} 16. Nxg2 {[%clk 0:01:25.4]} 16... e5 {[%clk
0:01:17.3]} 17. f3 {[%clk 0:01:20]} 17... Be6 {[%clk 0:01:16.3]} 18. a3 {[%clk
0:01:18.4]} 18... Be7 {[%clk 0:01:16.2]} 19. Ne2 {[%clk 0:01:16.9]} 19... Rd8
{[%clk 0:01:16.8]} 20. Qc3 {[%clk 0:01:17.1]} 20... f6 {[%clk 0:01:17.1]} 21. b4
{[%clk 0:01:16.8]} 21... a6 {[%clk 0:01:16.5]} 22. Kf2 {[%clk 0:01:17]} 22...
Kc7 {[%clk 0:01:16]} 23. Rhd1 {[%clk 0:01:17.5]} 23... Rdc8 {[%clk 0:01:15.8]}
24. f4 {[%clk 0:01:14.8]} 24... Kb8 {[%clk 0:01:13.3]} 25. fxe5 {[%clk
0:01:11.3]} 25... fxe5 {[%clk 0:01:13.6]} 26. Bxe5+ {[%clk 0:01:10.5]} 26... Ka7
{[%clk 0:01:14.2]} 27. Bd4+ {[%clk 0:01:09.4]} 27... Kb8 {[%clk 0:01:13.6]} 28.
Nef4 {[%clk 0:01:06.1]} 28... Bg4 {[%clk 0:01:12.5]} 29. Rd2 {[%clk 0:01:03.8]}
29... g5 {[%clk 0:01:10.4]} 30. Nd5 {[%clk 0:00:58.6]} 30... Rf8+ {[%clk
0:01:10.4]} 31. Kg1 {[%clk 0:00:58.3]} 31... Bd6 {[%clk 0:01:11]} 32. Bc5 {[%clk
0:00:48.1]} 32... Be5 {[%clk 0:01:09.9]} 33. Rd4 {[%clk 0:00:39.3]} 33... Re8
{[%clk 0:01:06.4]} 34. Rb1 {[%clk 0:00:39]} 34... Bf3 {[%clk 0:01:05.2]} 35. Nb6
{[%clk 0:00:35.8]} 35... Bxd4 {[%clk 0:00:48]} 36. exd4 {[%clk 0:00:35.6]} 36...
g4 {[%clk 0:00:48.3]} 37. b5 {[%clk 0:00:33.7]} 37... a5 {[%clk 0:00:47.6]} 38.
bxc6 {[%clk 0:00:33.6]} 38... Re2 {[%clk 0:00:46.4]} 39. c7+ {[%clk 0:00:33.7]}
39... Kxc7 {[%clk 0:00:46.4]} 40. Nxa8+ {[%clk 0:00:34]} 40... Kd8 {[%clk
0:00:46]} 41. Nf4 {[%clk 0:00:26.6]} 41... Re4 {[%clk 0:00:44]} 42. Bb6+ {[%clk
0:00:26.1]} 42... Ke8 {[%clk 0:00:43.5]} 43. Re1 {[%clk 0:00:26]} 43... Kf7
{[%clk 0:00:43.2]} 44. Rxe4 {[%clk 0:00:25.7]} 44... Bxe4 {[%clk 0:00:44.1]} 45.
Qc7+ {[%clk 0:00:26]} 1-0

[Event "*** Titled Tuesday Blitz"]
[Site "Chess.com"]
[Date "2020.04.07"]
[Round "6"]
[White "jmduque"]
[Black "1977Ivan"]
[Result "0-1"]
[WhiteElo "2512"]
[BlackElo "2714"]
[TimeControl "180+1"]
[EndTime "14:07:36 PDT"]
[Termination "1977Ivan won on time"]

1. e4 {[%clk 0:02:55.3]} 1... d6 {[%clk 0:02:59.7]} 2. d4 {[%clk 0:02:52.9]}
2... Nf6 {[%clk 0:03:00]} 3. Nc3 {[%clk 0:02:53.5]} 3... e5 {[%clk 0:03:00.2]}
4. Nf3 {[%clk 0:02:53]} 4... Nbd7 {[%clk 0:03:00.1]} 5. g4 {[%clk 0:02:52.4]}
5... d5 {[%clk 0:02:58.8]} 6. exd5 {[%clk 0:02:45.2]} 6... Bb4 {[%clk
0:02:55.5]} 7. dxe5 {[%clk 0:02:40.3]} 7... Qe7 {[%clk 0:02:54.6]} 8. Bf4 {[%clk
0:02:25.9]} 8... O-O {[%clk 0:02:35.4]} 9. Qd4 {[%clk 0:01:40.2]} 9... Bc5
{[%clk 0:02:21.4]} 10. Qd2 {[%clk 0:01:36.9]} 10... Nxg4 {[%clk 0:02:21.1]} 11.
Bg3 {[%clk 0:01:26.5]} 11... Ndxe5 {[%clk 0:02:15.6]} 12. Nxe5 {[%clk
0:01:23.7]} 12... Nxe5 {[%clk 0:02:15.2]} 13. O-O-O {[%clk 0:01:23.2]} 13... f6
{[%clk 0:01:15.9]} 14. Be2 {[%clk 0:01:21.8]} 14... Bf5 {[%clk 0:01:14.4]} 15.
Rhg1 {[%clk 0:01:15.9]} 15... Kh8 {[%clk 0:01:13.6]} 16. Qf4 {[%clk 0:01:03.2]}
16... Bg6 {[%clk 0:01:11.7]} 17. h4 {[%clk 0:01:01.6]} 17... Bd6 {[%clk
0:01:07.8]} 18. Qd2 {[%clk 0:00:49.3]} 18... Qf7 {[%clk 0:01:04.1]} 19. f4
{[%clk 0:00:44.8]} 19... Nd7 {[%clk 0:01:02]} 20. h5 {[%clk 0:00:33.8]} 20...
Bf5 {[%clk 0:00:57.8]} 21. Rg2 {[%clk 0:00:31.3]} 21... Nc5 {[%clk 0:00:57]} 22.
Bf3 {[%clk 0:00:29]} 22... Rfe8 {[%clk 0:00:56.6]} 23. Rdg1 {[%clk 0:00:29]}
23... Re7 {[%clk 0:00:54.9]} 24. Bh4 {[%clk 0:00:26.2]} 24... Qf8 {[%clk
0:00:46.2]} 25. Qd4 {[%clk 0:00:22.2]} 25... Nd7 {[%clk 0:00:44.5]} 26. h6
{[%clk 0:00:18.3]} 26... g6 {[%clk 0:00:44.3]} 27. Be4 {[%clk 0:00:18.7]} 27...
Bc5 {[%clk 0:00:40.5]} 28. Qd3 {[%clk 0:00:17.7]} 28... Bxg1 {[%clk 0:00:36.5]}
29. Bxf5 {[%clk 0:00:17]} 29... Be3+ {[%clk 0:00:33.8]} 30. Kb1 {[%clk
0:00:16.7]} 30... gxf5 {[%clk 0:00:32.1]} 31. Qxf5 {[%clk 0:00:16.4]} 31... Bd4
{[%clk 0:00:30.8]} 32. Ne4 {[%clk 0:00:15.9]} 32... Rae8 {[%clk 0:00:30.8]} 33.
Re2 {[%clk 0:00:15.2]} 33... Qf7 {[%clk 0:00:23]} 34. c3 {[%clk 0:00:14.8]}
34... Qg6 {[%clk 0:00:22.5]} 35. Bxf6+ {[%clk 0:00:12.9]} 35... Bxf6 {[%clk
0:00:20.6]} 0-1

[Event "*** Titled Tuesday Blitz"]
[Site "Chess.com"]
[Date "2020.04.07"]
[Round "6"]
[White "aquaticpineapples"]
[Black "Usurpov"]
[Result "1-0"]
[WhiteElo "2248"]
[BlackElo "2435"]
[TimeControl "180+1"]
[EndTime "14:07:36 PDT"]
[Termination "aquaticpineapples won by resignation"]

1. d4 {[%clk 0:03:00.9]} 1... Nf6 {[%clk 0:02:59.6]} 2. Nf3 {[%clk 0:03:01.1]}
2... g6 {[%clk 0:02:59.9]} 3. Nbd2 {[%clk 0:03:01.3]} 3... Bg7 {[%clk
0:02:53.6]} 4. e4 {[%clk 0:03:01.3]} 4... d6 {[%clk 0:02:53.6]} 5. Bd3 {[%clk
0:03:01.4]} 5... O-O {[%clk 0:02:51.1]} 6. O-O {[%clk 0:03:01.4]} 6... c5 {[%clk
0:02:51]} 7. c3 {[%clk 0:03:01]} 7... cxd4 {[%clk 0:02:44.5]} 8. cxd4 {[%clk
0:03:01.9]} 8... Nc6 {[%clk 0:02:44.9]} 9. a3 {[%clk 0:03:01.4]} 9... Bg4 {[%clk
0:02:39.8]} 10. h3 {[%clk 0:03:01.1]} 10... Bxf3 {[%clk 0:02:39.7]} 11. Nxf3
{[%clk 0:03:02]} 11... Rc8 {[%clk 0:02:38.1]} 12. d5 {[%clk 0:02:51.7]} 12...
Nb8 {[%clk 0:02:22.7]} 13. Be3 {[%clk 0:02:48.7]} 13... a6 {[%clk 0:02:16.1]}
14. Qb3 {[%clk 0:02:45.5]} 14... b5 {[%clk 0:01:53.4]} 15. a4 {[%clk 0:02:36.5]}
15... bxa4 {[%clk 0:01:52.5]} 16. Qxa4 {[%clk 0:02:28.3]} 16... Nfd7 {[%clk
0:01:52.7]} 17. Rfb1 {[%clk 0:02:11.8]} 17... Nc5 {[%clk 0:01:51.7]} 18. Bxc5
{[%clk 0:02:08.7]} 18... Rxc5 {[%clk 0:01:50.8]} 19. Bxa6 {[%clk 0:02:06.4]}
19... Nxa6 {[%clk 0:01:45]} 20. Qxa6 {[%clk 0:02:07.3]} 20... Qb8 {[%clk
0:01:38]} 21. Ra2 {[%clk 0:01:55.1]} 21... Qb4 {[%clk 0:01:33]} 22. Qa4 {[%clk
0:01:46.1]} 22... Rb8 {[%clk 0:01:28.2]} 23. Ne1 {[%clk 0:01:27.6]} 23... Qxa4
{[%clk 0:01:21.4]} 24. Rxa4 {[%clk 0:01:27.2]} 24... Rcb5 {[%clk 0:01:21.8]} 25.
b4 {[%clk 0:01:14.4]} 25... Rc5 {[%clk 0:00:27.4]} 26. Nd3 {[%clk 0:00:45.6]}
26... Rc3 {[%clk 0:00:20.5]} 27. Nf4 {[%clk 0:00:29.3]} 27... Be5 {[%clk
0:00:15.2]} 28. Ne2 {[%clk 0:00:26.2]} 28... Rc4 {[%clk 0:00:15]} 29. f3 {[%clk
0:00:24.7]} 29... Rc2 {[%clk 0:00:12.1]} 30. Kf1 {[%clk 0:00:23.5]} 30... h5
{[%clk 0:00:10.8]} 31. b5 {[%clk 0:00:22.9]} 31... h4 {[%clk 0:00:06.9]} 32. b6
{[%clk 0:00:22.9]} 32... Rb7 {[%clk 0:00:05.7]} 33. Ra7 {[%clk 0:00:21]} 33...
Rb8 {[%clk 0:00:05.5]} 34. b7 {[%clk 0:00:19.6]} 1-0

[Event "*** Titled Tuesday Blitz"]
[Site "Chess.com"]
[Date "2020.04.07"]
[Round "6"]
[White "AminMolaei"]
[Black "MFBerna"]
[Result "1-0"]
[WhiteElo "2527"]
[BlackElo "2328"]
[TimeControl "180+1"]
[EndTime "14:07:38 PDT"]
[Termination "AminMolaei won on time"]

1. d4 {[%clk 0:03:00.9]} 1... Nf6 {[%clk 0:02:59.4]} 2. c4 {[%clk 0:02:59.2]}
2... e6 {[%clk 0:02:58.8]} 3. Nc3 {[%clk 0:02:57.9]} 3... d5 {[%clk 0:02:58.3]}
4. Bg5 {[%clk 0:02:54.4]} 4... Be7 {[%clk 0:02:58]} 5. cxd5 {[%clk 0:02:53.4]}
5... exd5 {[%clk 0:02:57.6]} 6. e3 {[%clk 0:02:52.9]} 6... c6 {[%clk 0:02:55.4]}
7. Bd3 {[%clk 0:02:52.1]} 7... O-O {[%clk 0:02:51.7]} 8. Qc2 {[%clk 0:02:51.4]}
8... Nbd7 {[%clk 0:02:51.8]} 9. Nge2 {[%clk 0:02:50.6]} 9... Re8 {[%clk
0:02:50.1]} 10. f3 {[%clk 0:02:50.1]} 10... Nf8 {[%clk 0:02:49.7]} 11. Bh4
{[%clk 0:02:48.8]} 11... c5 {[%clk 0:02:47.8]} 12. O-O {[%clk 0:02:45.8]} 12...
c4 {[%clk 0:02:47.8]} 13. Bf5 {[%clk 0:02:45.4]} 13... a6 {[%clk 0:02:25]} 14.
Rad1 {[%clk 0:02:03.6]} 14... b5 {[%clk 0:02:24.4]} 15. a3 {[%clk 0:02:03]}
15... Be6 {[%clk 0:02:17.2]} 16. Nf4 {[%clk 0:02:00.4]} 16... Bd6 {[%clk
0:01:40.1]} 17. Nfxd5 {[%clk 0:00:49.9]} 17... Bxd5 {[%clk 0:01:29.3]} 18. Nxd5
{[%clk 0:00:48.9]} 18... Bxh2+ {[%clk 0:00:25.5]} 19. Kxh2 {[%clk 0:00:49.8]}
19... Qxd5 {[%clk 0:00:25.9]} 20. e4 {[%clk 0:00:45.5]} 20... Qc6 {[%clk
0:00:17.5]} 21. d5 {[%clk 0:00:37.3]} 21... Qc7+ {[%clk 0:00:15.6]} 22. Bg3
{[%clk 0:00:36.9]} 22... Qb6 {[%clk 0:00:15.7]} 23. e5 {[%clk 0:00:36.3]} 23...
Nh5 {[%clk 0:00:15.4]} 24. f4 {[%clk 0:00:32.1]} 24... Qh6 {[%clk 0:00:14.7]}
25. Bh3 {[%clk 0:00:28.1]} 25... Ng6 {[%clk 0:00:14.2]} 26. Qf5 {[%clk 0:00:21]}
26... Nxg3 {[%clk 0:00:08.2]} 27. Kxg3 {[%clk 0:00:21.9]} 27... Qh4+ {[%clk
0:00:08.7]} 28. Kh2 {[%clk 0:00:21.8]} 28... Rad8 {[%clk 0:00:03.8]} 29. d6
{[%clk 0:00:20.5]} 29... Nf8 {[%clk 0:00:01.1]} 30. g3 {[%clk 0:00:17.5]} 30...
Qh6 {[%clk 0:00:01]} 31. Kg2 {[%clk 0:00:16.6]} 31... Ne6 {[%clk 0:00:01.2]} 32.
Bg4 {[%clk 0:00:16.6]} 32... Qg6 {[%clk 0:00:01.3]} 33. Rfe1 {[%clk 0:00:15.2]}
1-0

[Event "*** Titled Tuesday Blitz"]
[Site "Chess.com"]
[Date "2020.04.07"]
[Round "6"]
[White "Bagirova"]
[Black "zivicd"]
[Result "1-0"]
[WhiteElo "2173"]
[BlackElo "2278"]
[TimeControl "180+1"]
[EndTime "14:07:40 PDT"]
[Termination "Bagirova won on time"]

1. e4 {[%clk 0:03:00.9]} 1... c5 {[%clk 0:02:59.2]} 2. Nf3 {[%clk 0:03:00.4]}
2... e6 {[%clk 0:02:58.1]} 3. d4 {[%clk 0:03:00.6]} 3... cxd4 {[%clk 0:02:56.1]}
4. Nxd4 {[%clk 0:03:01]} 4... a6 {[%clk 0:02:56.4]} 5. Nc3 {[%clk 0:03:01.1]}
5... Qc7 {[%clk 0:02:49.5]} 6. Bd3 {[%clk 0:02:59.5]} 6... Nf6 {[%clk
0:02:48.7]} 7. O-O {[%clk 0:02:58.4]} 7... b5 {[%clk 0:02:48.6]} 8. a3 {[%clk
0:02:57]} 8... Bb7 {[%clk 0:02:48.2]} 9. Be3 {[%clk 0:02:53.5]} 9... b4 {[%clk
0:02:46.6]} 10. axb4 {[%clk 0:02:51.7]} 10... Bxb4 {[%clk 0:02:46.6]} 11. f3
{[%clk 0:02:08.6]} 11... d5 {[%clk 0:02:44.9]} 12. exd5 {[%clk 0:02:07.1]} 12...
Bxc3 {[%clk 0:02:12.3]} 13. d6 {[%clk 0:02:03.3]} 13... Qxd6 {[%clk 0:01:43.8]}
14. bxc3 {[%clk 0:02:02]} 14... Nd5 {[%clk 0:01:43.8]} 15. Bd2 {[%clk
0:01:58.3]} 15... Nc6 {[%clk 0:01:41.1]} 16. Nxc6 {[%clk 0:01:52.6]} 16... Qxc6
{[%clk 0:01:35.7]} 17. c4 {[%clk 0:01:48.7]} 17... Qc5+ {[%clk 0:01:35.4]} 18.
Rf2 {[%clk 0:01:45.7]} 18... Ne7 {[%clk 0:01:15.5]} 19. Qe2 {[%clk 0:01:41.8]}
19... O-O {[%clk 0:01:11.9]} 20. Be3 {[%clk 0:01:36.7]} 20... Qc7 {[%clk
0:01:06.7]} 21. Bd4 {[%clk 0:01:32.6]} 21... Nc6 {[%clk 0:01:00.2]} 22. Bb2
{[%clk 0:01:28.1]} 22... e5 {[%clk 0:00:49.5]} 23. Re1 {[%clk 0:01:18.4]} 23...
f6 {[%clk 0:00:44.1]} 24. Qe4 {[%clk 0:01:11.7]} 24... g6 {[%clk 0:00:40.6]} 25.
Qg4 {[%clk 0:01:07.3]} 25... Bc8 {[%clk 0:00:32]} 26. Qg3 {[%clk 0:00:58.6]}
26... Qa5 {[%clk 0:00:20.6]} 27. Rfe2 {[%clk 0:00:54.7]} 27... Ra7 {[%clk
0:00:14.9]} 28. Bc1 {[%clk 0:00:51.4]} 28... Raf7 {[%clk 0:00:08]} 29. Bh6
{[%clk 0:00:50.7]} 29... f5 {[%clk 0:00:04.6]} 30. Bxf8 {[%clk 0:00:48.2]} 30...
Rxf8 {[%clk 0:00:04.9]} 31. h4 {[%clk 0:00:37.4]} 31... Qc5+ {[%clk 0:00:04.8]}
32. Kh1 {[%clk 0:00:35.4]} 32... a5 {[%clk 0:00:04.9]} 33. h5 {[%clk 0:00:34.9]}
33... Kg7 {[%clk 0:00:04.6]} 34. Qg5 {[%clk 0:00:30.1]} 34... h6 {[%clk
0:00:01.9]} 35. Qxg6+ {[%clk 0:00:29.3]} 1-0

[Event "*** Titled Tuesday Blitz"]
[Site "Chess.com"]
[Date "2020.04.07"]
[Round "6"]
[White "AlleyOoper"]
[Black "timator"]
[Result "1-0"]
[WhiteElo "2509"]
[BlackElo "2647"]
[TimeControl "180+1"]
[EndTime "14:07:41 PDT"]
[Termination "AlleyOoper won by resignation"]

1. d4 {[%clk 0:03:00.9]} 1... Nf6 {[%clk 0:02:59.5]} 2. Bf4 {[%clk 0:03:00.3]}
2... e6 {[%clk 0:03:00.3]} 3. e3 {[%clk 0:03:00.5]} 3... b6 {[%clk 0:03:00.9]}
4. Nf3 {[%clk 0:03:01]} 4... Bb7 {[%clk 0:03:01.4]} 5. Bd3 {[%clk 0:02:58.3]}
5... h6 {[%clk 0:03:01.9]} 6. h3 {[%clk 0:02:58.2]} 6... Bd6 {[%clk 0:03:02.4]}
7. Bxd6 {[%clk 0:02:55.5]} 7... cxd6 {[%clk 0:03:03.3]} 8. Nbd2 {[%clk
0:02:52.4]} 8... O-O {[%clk 0:03:04.2]} 9. O-O {[%clk 0:02:51.3]} 9... d5 {[%clk
0:03:04.7]} 10. Qe2 {[%clk 0:02:47.7]} 10... Ne4 {[%clk 0:03:04.6]} 11. c4
{[%clk 0:02:37.7]} 11... Nxd2 {[%clk 0:03:04.2]} 12. Nxd2 {[%clk 0:02:36.2]}
12... dxc4 {[%clk 0:03:04.6]} 13. Nxc4 {[%clk 0:02:36.8]} 13... d5 {[%clk
0:03:00.3]} 14. Ne5 {[%clk 0:02:36.6]} 14... Nd7 {[%clk 0:02:59.8]} 15. f4
{[%clk 0:02:36.8]} 15... f5 {[%clk 0:02:47.9]} 16. Rac1 {[%clk 0:02:26.3]} 16...
Nxe5 {[%clk 0:02:47.5]} 17. fxe5 {[%clk 0:02:23.4]} 17... Rc8 {[%clk 0:02:34.1]}
18. Qh5 {[%clk 0:02:20.5]} 18... Qg5 {[%clk 0:02:28.2]} 19. Qxg5 {[%clk
0:02:19.8]} 19... hxg5 {[%clk 0:02:29.1]} 20. Kf2 {[%clk 0:02:13.3]} 20... g6
{[%clk 0:02:28.7]} 21. Ke2 {[%clk 0:02:10.4]} 21... Kf7 {[%clk 0:02:28.9]} 22.
Kd2 {[%clk 0:02:08.2]} 22... Ke7 {[%clk 0:02:28.8]} 23. Rxc8 {[%clk 0:02:02.7]}
23... Rxc8 {[%clk 0:02:27.5]} 24. Rc1 {[%clk 0:02:02.8]} 24... Rxc1 {[%clk
0:02:14.8]} 25. Kxc1 {[%clk 0:02:03.7]} 25... Bc6 {[%clk 0:02:11.2]} 26. Kd2
{[%clk 0:02:02.5]} 26... Kf7 {[%clk 0:02:11.4]} 27. Ke2 {[%clk 0:02:01.4]} 27...
Kg7 {[%clk 0:02:11.5]} 28. g3 {[%clk 0:01:52.1]} 28... Kh6 {[%clk 0:02:10.9]}
29. Kf2 {[%clk 0:01:51.8]} 29... Kh5 {[%clk 0:02:09.9]} 30. Be2+ {[%clk
0:01:51.6]} 30... Kh6 {[%clk 0:02:09.7]} 31. a3 {[%clk 0:01:48.4]} 31... a5
{[%clk 0:02:09.4]} 32. Ba6 {[%clk 0:01:47]} 32... Kg7 {[%clk 0:02:04.5]} 33. Bc8
{[%clk 0:01:45.6]} 33... Kf7 {[%clk 0:02:04.5]} 34. Kf3 {[%clk 0:01:44.9]} 34...
Bb5 {[%clk 0:02:01.3]} 35. h4 {[%clk 0:01:44.6]} 35... Ke7 {[%clk 0:00:48.3]}
36. hxg5 {[%clk 0:01:43]} 36... Bd3 {[%clk 0:00:48.4]} 37. Kf4 {[%clk
0:01:40.3]} 37... Be2 {[%clk 0:00:46.3]} 38. b4 {[%clk 0:01:26]} 38... axb4
{[%clk 0:00:42.4]} 39. axb4 {[%clk 0:01:25.8]} 39... Kf7 {[%clk 0:00:23.7]} 40.
Bd7 {[%clk 0:01:21.2]} 40... b5 {[%clk 0:00:23.3]} 41. g4 {[%clk 0:01:12]} 41...
fxg4 {[%clk 0:00:21.2]} 42. Bc6 {[%clk 0:01:05.7]} 42... Ke7 {[%clk 0:00:20.6]}
43. e4 {[%clk 0:01:05.2]} 43... Bf3 {[%clk 0:00:16.6]} 44. exd5 {[%clk
0:01:02.6]} 44... exd5 {[%clk 0:00:14.9]} 45. Bxb5 {[%clk 0:01:01.9]} 45... Be4
{[%clk 0:00:15.5]} 46. Be2 {[%clk 0:01:01.6]} 46... Kd7 {[%clk 0:00:13.8]} 47.
Bxg4+ {[%clk 0:01:00.5]} 47... Kc6 {[%clk 0:00:14.7]} 48. Be2 {[%clk 0:00:57.2]}
48... Bf5 {[%clk 0:00:15]} 49. Bf3 {[%clk 0:00:50.6]} 49... Be6 {[%clk
0:00:14.4]} 50. Bg4 {[%clk 0:00:48.4]} 50... Bf7 {[%clk 0:00:13.3]} 51. e6
{[%clk 0:00:48.4]} 1-0

[Event "*** Titled Tuesday Blitz"]
[Site "Chess.com"]
[Date "2020.04.07"]
[Round "6"]
[White "Crazy_girl99"]
[Black "GreatDamnedRedSpot"]
[Result "1-0"]
[WhiteElo "2473"]
[BlackElo "2306"]
[TimeControl "180+1"]
[EndTime "14:07:41 PDT"]
[Termination "Crazy_girl99 won on time"]

1. Nf3 {[%clk 0:03:00.9]} 1... c6 {[%clk 0:02:59.3]} 2. e4 {[%clk 0:03:00.2]}
2... g6 {[%clk 0:02:57]} 3. d4 {[%clk 0:02:59.4]} 3... Na6 {[%clk 0:02:55.9]} 4.
Nc3 {[%clk 0:02:58.8]} 4... Nc7 {[%clk 0:02:55.9]} 5. Be2 {[%clk 0:02:57.5]}
5... d5 {[%clk 0:02:55.8]} 6. e5 {[%clk 0:02:57.7]} 6... h5 {[%clk 0:02:55.8]}
7. Bf4 {[%clk 0:02:56.8]} 7... Bh6 {[%clk 0:02:55.7]} 8. Qd2 {[%clk 0:02:56.3]}
8... Bg4 {[%clk 0:02:49.7]} 9. O-O-O {[%clk 0:02:51.4]} 9... Ne6 {[%clk
0:02:41]} 10. Bxh6 {[%clk 0:02:50.8]} 10... Bxf3 {[%clk 0:02:26.9]} 11. Bxf3
{[%clk 0:02:49.6]} 11... Nxh6 {[%clk 0:02:27]} 12. Ne2 {[%clk 0:02:40.1]} 12...
Nf5 {[%clk 0:02:10.7]} 13. g3 {[%clk 0:02:34.1]} 13... Qb6 {[%clk 0:02:05.5]}
14. h3 {[%clk 0:02:25.6]} 14... O-O-O {[%clk 0:01:57.5]} 15. Kb1 {[%clk
0:02:25]} 15... Kb8 {[%clk 0:01:55.4]} 16. c3 {[%clk 0:02:19.1]} 16... Nc7
{[%clk 0:01:22.1]} 17. Nc1 {[%clk 0:02:11.3]} 17... e6 {[%clk 0:01:16.4]} 18.
Rhe1 {[%clk 0:02:07.9]} 18... Na6 {[%clk 0:01:10.9]} 19. Be2 {[%clk 0:02:00.3]}
19... Rc8 {[%clk 0:01:06.6]} 20. Nb3 {[%clk 0:01:59.2]} 20... Ka8 {[%clk
0:00:45.7]} 21. Qf4 {[%clk 0:01:58.5]} 21... Rc7 {[%clk 0:00:13.2]} 22. g4
{[%clk 0:01:48.8]} 22... hxg4 {[%clk 0:00:13.2]} 23. hxg4 {[%clk 0:01:49.7]}
23... Ng7 {[%clk 0:00:13.5]} 24. Qf6 {[%clk 0:01:45.7]} 24... Rg8 {[%clk
0:00:13.9]} 25. Rh1 {[%clk 0:01:44.9]} 25... Rd7 {[%clk 0:00:11.4]} 26. Rh7
{[%clk 0:01:40.8]} 26... Ne8 {[%clk 0:00:11.7]} 27. Qf3 {[%clk 0:01:40.5]} 27...
Rf8 {[%clk 0:00:08.4]} 28. Rdh1 {[%clk 0:01:39.5]} 28... Nb8 {[%clk 0:00:07.3]}
29. Nc5 {[%clk 0:01:38.5]} 29... Re7 {[%clk 0:00:06.5]} 30. Bd3 {[%clk
0:01:35.9]} 30... Qc7 {[%clk 0:00:06.5]} 31. Rh8 {[%clk 0:01:31.9]} 31... Rxh8
{[%clk 0:00:05.5]} 32. Rxh8 {[%clk 0:01:32.8]} 32... b6 {[%clk 0:00:05.3]} 33.
Nb3 {[%clk 0:01:26]} 33... Kb7 {[%clk 0:00:05.6]} 34. Rf8 {[%clk 0:01:10.6]}
34... Qd7 {[%clk 0:00:05]} 35. c4 {[%clk 0:01:06.4]} 35... dxc4 {[%clk
0:00:04.2]} 36. Bxc4 {[%clk 0:01:06.3]} 36... Nc7 {[%clk 0:00:04.5]} 37. Qe2
{[%clk 0:00:54.9]} 37... a5 {[%clk 0:00:04.6]} 38. Qe3 {[%clk 0:00:43.5]} 38...
Nba6 {[%clk 0:00:04.4]} 39. a3 {[%clk 0:00:32.7]} 39... Nd5 {[%clk 0:00:02.2]}
40. Qe2 {[%clk 0:00:29.8]} 40... Nac7 {[%clk 0:00:02.7]} 41. Nc1 {[%clk
0:00:28.7]} 41... Nf4 {[%clk 0:00:02.5]} 42. Qd2 {[%clk 0:00:27.6]} 1-0

[Event "*** Titled Tuesday Blitz"]
[Site "Chess.com"]
[Date "2020.04.07"]
[Round "6"]
[White "saraswathii"]
[Black "JacekDubiel"]
[Result "1-0"]
[WhiteElo "2234"]
[BlackElo "2370"]
[TimeControl "180+1"]
[EndTime "14:07:41 PDT"]
[Termination "saraswathii won by resignation"]

1. e4 {[%clk 0:03:00.9]} 1... c5 {[%clk 0:02:59.8]} 2. Nf3 {[%clk 0:02:59.7]}
2... Nf6 {[%clk 0:03:00.3]} 3. d3 {[%clk 0:02:59.6]} 3... Nc6 {[%clk 0:02:58.8]}
4. g3 {[%clk 0:02:59.8]} 4... d5 {[%clk 0:02:59.2]} 5. exd5 {[%clk 0:02:58.6]}
5... Nxd5 {[%clk 0:02:58.8]} 6. Bg2 {[%clk 0:02:58.6]} 6... e5 {[%clk
0:02:58.8]} 7. O-O {[%clk 0:02:58.4]} 7... Be6 {[%clk 0:02:56.4]} 8. Re1 {[%clk
0:02:58.2]} 8... f6 {[%clk 0:02:56.4]} 9. c3 {[%clk 0:02:57.4]} 9... Nc7 {[%clk
0:02:38.7]} 10. Be3 {[%clk 0:02:51.7]} 10... Be7 {[%clk 0:02:38.9]} 11. d4
{[%clk 0:02:51.8]} 11... cxd4 {[%clk 0:02:33.5]} 12. cxd4 {[%clk 0:02:52.7]}
12... e4 {[%clk 0:02:16.8]} 13. Nfd2 {[%clk 0:02:51.9]} 13... f5 {[%clk
0:02:17.2]} 14. Nb3 {[%clk 0:02:43.8]} 14... Nd5 {[%clk 0:02:10.6]} 15. Nc3
{[%clk 0:02:34.5]} 15... O-O {[%clk 0:02:05.4]} 16. f3 {[%clk 0:02:18.7]} 16...
f4 {[%clk 0:01:17.5]} 17. gxf4 {[%clk 0:02:11.9]} 17... exf3 {[%clk 0:01:14.1]}
18. Qxf3 {[%clk 0:02:05.1]} 18... Nxe3 {[%clk 0:01:12.5]} 19. Qxe3 {[%clk
0:01:59.4]} 19... Bxb3 {[%clk 0:01:02.7]} 20. axb3 {[%clk 0:02:00.3]} 20... Bf6
{[%clk 0:00:58.9]} 21. Qe6+ {[%clk 0:01:43.9]} 21... Kh8 {[%clk 0:00:58.5]} 22.
Bxc6 {[%clk 0:01:44.8]} 22... Qxd4+ {[%clk 0:00:53.8]} 23. Kh1 {[%clk 0:01:38]}
23... bxc6 {[%clk 0:00:53.1]} 24. Qxc6 {[%clk 0:01:36.5]} 24... Qxf4 {[%clk
0:00:50.2]} 25. Rf1 {[%clk 0:01:35.5]} 25... Qh4 {[%clk 0:00:36.2]} 26. Nd5
{[%clk 0:01:27.4]} 26... Be5 {[%clk 0:00:34.6]} 27. Qc2 {[%clk 0:01:22]} 27...
Rfc8 {[%clk 0:00:28.2]} 28. Qe2 {[%clk 0:01:10.1]} 28... Re8 {[%clk 0:00:25.9]}
29. Qg2 {[%clk 0:01:06.5]} 29... h6 {[%clk 0:00:21.8]} 30. Rae1 {[%clk
0:01:02.4]} 30... Rad8 {[%clk 0:00:19.1]} 31. Re2 {[%clk 0:00:52.6]} 31... Qd4
{[%clk 0:00:18.6]} 32. Nc3 {[%clk 0:00:41.7]} 32... Qb4 {[%clk 0:00:16.4]} 33.
Rfe1 {[%clk 0:00:39.6]} 33... Qa5 {[%clk 0:00:14.6]} 34. Qg6 {[%clk 0:00:20.5]}
34... Rc8 {[%clk 0:00:06.9]} 35. Qh5 {[%clk 0:00:18.1]} 35... Rc5 {[%clk
0:00:06.8]} 36. Qxe8+ {[%clk 0:00:16.5]} 1-0